[Event "Titled Tuesday Blitz May 24 Early 2022"]
[White "Proudian, Armen"]
[Black "Hambleton, Aman"]
[WhiteFideId "2130734"]
[BlackFideId "2606577"]
[WhiteElo "2380"]
[BlackElo "2552"]
[Result "1-0"]
[Round "09"]
[TimeControl "180+1"]
[Date "2022.05.25"]
[WhiteClock "0:01:12"]
[BlackClock "0:00:08"]

1. e4 {[%clk 0:03:00]}  b6 {[%clk 0:02:39]} 2. d4 {[%clk 0:02:59]}  Bb7 {[%clk 0:01:37]} 3. Nc3 {[%clk 0:02:58]}  e6 {[%clk 0:01:28]} 4. a3 {[%clk 0:02:58]}  g6 {[%clk 0:01:19]} 5. f4 {[%clk 0:02:54]}  d6 {[%clk 0:01:13]} 6. Nf3 {[%clk 0:02:54]}  a6 {[%clk 0:01:04]} 7. h4 {[%clk 0:02:54]}  h5 {[%clk 0:01:04]} 8. Ng5 {[%clk 0:02:54]}  Nh6 {[%clk 0:01:03]} 9. Bd3 {[%clk 0:02:52]}  Nd7 {[%clk 0:01:02]} 10. Qe2 {[%clk 0:02:45]}  Bg7 {[%clk 0:01:02]} 11. f5 {[%clk 0:02:40]}  e5 {[%clk 0:00:27]} 12. fxg6 {[%clk 0:02:06]}  Qe7 {[%clk 0:00:10]} 13. gxf7+ {[%clk 0:01:51]}  Nxf7 {[%clk 0:00:11]} 14. d5 {[%clk 0:01:43]}  Nc5 {[%clk 0:00:03]} 15. O-O {[%clk 0:01:39]}  Nxd3 {[%clk 0:00:02]} 16. Rxf7 {[%clk 0:01:35]}  Nxc1 {[%clk 0:00:01]} 17. Rxe7+ {[%clk 0:01:35]}  Kxe7 {[%clk 0:00:01]} 18. Rxc1 {[%clk 0:01:35]}  Raf8 {[%clk 0:00:02]} 19. Rf1 {[%clk 0:01:28]}  Bc8 {[%clk 0:00:02]} 20. Rxf8 {[%clk 0:01:23]}  Rxf8 {[%clk 0:00:02]} 21. Qxh5 {[%clk 0:01:22]}  Bd7 {[%clk 0:00:01]} 22. Qh7 {[%clk 0:01:20]}  Kf6 {[%clk 0:00:01]} 23. Ne6 {[%clk 0:01:10]}  Bxe6 {[%clk 0:00:01]} 24. dxe6 {[%clk 0:01:11]}  Rh8 {[%clk 0:00:01]} 25. Qf5+ {[%clk 0:01:10]}  Ke7 {[%clk 0:00:01]} 26. Qf7+ {[%clk 0:01:11]}  Kd8 {[%clk 0:00:01]} 27. e7+ {[%clk 0:01:10]}  Kc8 {[%clk 0:00:01]} 28. e8=Q+ {[%clk 0:01:10]}  Rxe8 {[%clk 0:00:02]} 29. Qxe8+ {[%clk 0:01:11]}  Kb7 {[%clk 0:00:02]} 30. Qg6 {[%clk 0:01:11]}  Bh6 {[%clk 0:00:03]} 31. Qxh6 {[%clk 0:01:11]}  Kc6 {[%clk 0:00:04]} 32. Qe3 {[%clk 0:01:11]}  b5 {[%clk 0:00:05]} 33. h5 {[%clk 0:01:11]}  a5 {[%clk 0:00:05]} 34. h6 {[%clk 0:01:11]}  b4 {[%clk 0:00:06]} 35. axb4 {[%clk 0:01:11]}  axb4 {[%clk 0:00:07]} 36. Nd5 {[%clk 0:01:12]}  Kb5 {[%clk 0:00:07]} 37. h7 {[%clk 0:01:12]}  c5 {[%clk 0:00:07]} 38. h8=Q {[%clk 0:01:12]}  c4 {[%clk 0:00:08]} 39. Qb8+ {[%clk 0:01:12]}  Ka4 {[%clk 0:00:08]} 40. Qba7+ {[%clk 0:01:11]}  Kb5 {[%clk 0:00:08]} 41. Qeb6# {[%clk 0:01:12]} 1-0


[Site "https://www.chess.com"]

[Event "Titled Tuesday Blitz May 24 Early 2022"]
[White "Provaznik, Michal"]
[Black "Ciuffoletti, Paolo"]
[WhiteFideId "315273"]
[BlackFideId "807630"]
[WhiteElo "2176"]
[BlackElo "2143"]
[Result "0-1"]
[Round "09"]
[TimeControl "180+1"]
[Date "2022.05.25"]
[WhiteClock "0:00:18"]
[BlackClock "0:00:15"]

1. b3 {[%clk 0:03:00]}  g6 {[%clk 0:02:57]} 2. Bb2 {[%clk 0:03:01]}  Nf6 {[%clk 0:02:57]} 3. g4 {[%clk 0:03:01]}  h6 {[%clk 0:02:55]} 4. Nf3 {[%clk 0:02:54]}  Bg7 {[%clk 0:02:53]} 5. g5 {[%clk 0:02:50]}  hxg5 {[%clk 0:02:49]} 6. Nxg5 {[%clk 0:02:50]}  d6 {[%clk 0:02:33]} 7. e3 {[%clk 0:02:50]}  e5 {[%clk 0:02:31]} 8. Bc4 {[%clk 0:02:50]}  d5 {[%clk 0:02:24]} 9. Be2 {[%clk 0:02:46]}  Nc6 {[%clk 0:02:18]} 10. Na3 {[%clk 0:02:41]}  Bf5 {[%clk 0:02:02]} 11. d3 {[%clk 0:02:39]}  Bh6 {[%clk 0:01:50]} 12. Nf3 {[%clk 0:02:38]}  Qe7 {[%clk 0:01:41]} 13. Qd2 {[%clk 0:02:38]}  O-O-O {[%clk 0:01:38]} 14. O-O-O {[%clk 0:02:38]}  d4 {[%clk 0:01:35]} 15. Kb1 {[%clk 0:02:36]}  Nd5 {[%clk 0:01:31]} 16. Nc4 {[%clk 0:02:18]}  b5 {[%clk 0:01:19]} 17. Na5 {[%clk 0:02:17]}  Nb8 {[%clk 0:01:07]} 18. Nxd4 {[%clk 0:02:03]}  exd4 {[%clk 0:01:03]} 19. Bxd4 {[%clk 0:02:03]}  Rhe8 {[%clk 0:00:57]} 20. Bxa7 {[%clk 0:01:53]}  Qa3 {[%clk 0:00:44]} 21. Bxb8 {[%clk 0:01:38]}  Bg7 {[%clk 0:00:27]} 22. c4 {[%clk 0:01:09]}  Nc3+ {[%clk 0:00:25]} 23. Qxc3 {[%clk 0:00:31]}  Bxc3 {[%clk 0:00:24]} 24. Rd2 {[%clk 0:00:31]}  Bxd2 {[%clk 0:00:22]} 25. Nc6 {[%clk 0:00:26]}  Bc3 {[%clk 0:00:19]} 26. Na7+ {[%clk 0:00:17]}  Kxb8 {[%clk 0:00:16]} 27. Nxb5 {[%clk 0:00:18]}  Qb2# {[%clk 0:00:15]} 0-1


[Site "https://www.chess.com"]

[Event "Titled Tuesday Blitz May 24 Early 2022"]
[White "Quirke, Jeffrey"]
[Black "Steenbekkers, Franck"]
[WhiteFideId "2013029"]
[BlackFideId "1004220"]
[WhiteElo "2235"]
[BlackElo "2028"]
[Result "1/2-1/2"]
[Round "09"]
[TimeControl "180+1"]
[Date "2022.05.25"]
[WhiteClock "0:01:45"]
[BlackClock "0:02:15"]

1. e4 {[%clk 0:03:00]}  e6 {[%clk 0:02:56]} 2. d4 {[%clk 0:02:59]}  d5 {[%clk 0:02:55]} 3. Nc3 {[%clk 0:02:59]}  Bb4 {[%clk 0:02:53]} 4. exd5 {[%clk 0:02:54]}  exd5 {[%clk 0:02:52]} 5. Bd3 {[%clk 0:02:55]}  Ne7 {[%clk 0:02:51]} 6. Nf3 {[%clk 0:02:52]}  Nbc6 {[%clk 0:02:48]} 7. h3 {[%clk 0:02:49]}  Bf5 {[%clk 0:02:46]} 8. O-O {[%clk 0:02:47]}  Qd7 {[%clk 0:02:44]} 9. Ne2 {[%clk 0:02:26]}  O-O {[%clk 0:02:39]} 10. c3 {[%clk 0:02:24]}  Bd6 {[%clk 0:02:38]} 11. Bf4 {[%clk 0:02:24]}  Bxd3 {[%clk 0:02:35]} 12. Qxd3 {[%clk 0:02:23]}  Ng6 {[%clk 0:02:35]} 13. Bxd6 {[%clk 0:02:23]}  Qxd6 {[%clk 0:02:34]} 14. Rfe1 {[%clk 0:02:20]}  Rae8 {[%clk 0:02:32]} 15. Ng3 {[%clk 0:02:12]}  Nf4 {[%clk 0:02:30]} 16. Qd2 {[%clk 0:02:10]}  Qf6 {[%clk 0:02:28]} 17. Nh2 {[%clk 0:01:45]}  h5 {[%clk 0:02:15]} 1/2-1/2


[Site "https://www.chess.com"]

[Event "Titled Tuesday Blitz May 24 Early 2022"]
[White "Richter, Nils"]
[Black "Horak, Martin"]
[WhiteFideId "12990809"]
[BlackFideId "367095"]
[WhiteElo "2243"]
[BlackElo "1997"]
[Result "1-0"]
[Round "09"]
[TimeControl "180+1"]
[Date "2022.05.25"]
[WhiteClock "0:00:52"]
[BlackClock "0:00:15"]

1. b3 {[%clk 0:03:00]}  Nf6 {[%clk 0:02:58]} 2. Bb2 {[%clk 0:03:01]}  d5 {[%clk 0:02:57]} 3. Nf3 {[%clk 0:03:01]}  c5 {[%clk 0:02:57]} 4. e3 {[%clk 0:03:01]}  e6 {[%clk 0:02:57]} 5. c4 {[%clk 0:02:59]}  dxc4 {[%clk 0:02:56]} 6. Bxc4 {[%clk 0:02:59]}  Be7 {[%clk 0:02:56]} 7. O-O {[%clk 0:02:57]}  O-O {[%clk 0:02:56]} 8. Be2 {[%clk 0:02:53]}  Nc6 {[%clk 0:02:56]} 9. d3 {[%clk 0:02:53]}  b6 {[%clk 0:02:55]} 10. Nbd2 {[%clk 0:02:52]}  Bb7 {[%clk 0:02:55]} 11. a3 {[%clk 0:02:48]}  Rc8 {[%clk 0:02:55]} 12. Qc2 {[%clk 0:02:47]}  Qc7 {[%clk 0:02:55]} 13. Rfd1 {[%clk 0:02:47]}  Rfd8 {[%clk 0:02:54]} 14. Nf1 {[%clk 0:02:47]}  Qb8 {[%clk 0:02:54]} 15. Ng3 {[%clk 0:02:46]}  Qa8 {[%clk 0:02:54]} 16. Rac1 {[%clk 0:02:40]}  Rd7 {[%clk 0:02:30]} 17. Bf1 {[%clk 0:02:40]}  Rcd8 {[%clk 0:02:30]} 18. h3 {[%clk 0:02:35]}  Rc8 {[%clk 0:02:20]} 19. Qb1 {[%clk 0:02:28]}  Rcd8 {[%clk 0:02:13]} 20. Bc3 {[%clk 0:02:26]}  Ba6 {[%clk 0:02:10]} 21. b4 {[%clk 0:02:17]}  cxb4 {[%clk 0:02:04]} 22. axb4 {[%clk 0:02:18]}  Bb5 {[%clk 0:02:02]} 23. Nd4 {[%clk 0:02:07]}  Nxd4 {[%clk 0:01:59]} 24. Bxd4 {[%clk 0:02:08]}  Qb7 {[%clk 0:01:30]} 25. Qb2 {[%clk 0:02:05]}  Ne8 {[%clk 0:01:22]} 26. Ne4 {[%clk 0:02:02]}  h6 {[%clk 0:01:18]} 27. Ra1 {[%clk 0:01:58]}  f5 {[%clk 0:01:16]} 28. Nc3 {[%clk 0:01:56]}  Bc6 {[%clk 0:01:16]} 29. b5 {[%clk 0:01:55]}  Bd5 {[%clk 0:01:10]} 30. Nxd5 {[%clk 0:01:55]}  Rxd5 {[%clk 0:01:05]} 31. g3 {[%clk 0:01:54]}  Qd7 {[%clk 0:00:56]} 32. Rab1 {[%clk 0:01:49]}  Bf6 {[%clk 0:00:53]} 33. Bxf6 {[%clk 0:01:46]}  Nxf6 {[%clk 0:00:53]} 34. d4 {[%clk 0:01:43]}  Rc8 {[%clk 0:00:31]} 35. Rdc1 {[%clk 0:01:42]}  Kh7 {[%clk 0:00:25]} 36. Rxc8 {[%clk 0:01:39]}  Qxc8 {[%clk 0:00:26]} 37. Rc1 {[%clk 0:01:40]}  Qd8 {[%clk 0:00:26]} 38. Rc6 {[%clk 0:01:39]}  Rd6 {[%clk 0:00:24]} 39. Qc2 {[%clk 0:01:31]}  Nd5 {[%clk 0:00:23]} 40. Rc8 {[%clk 0:01:27]}  Qd7 {[%clk 0:00:20]} 41. Qc4 {[%clk 0:01:16]}  Nf6 {[%clk 0:00:15]} 42. Rc7 {[%clk 0:01:16]}  Qd8 {[%clk 0:00:15]} 43. Rxa7 {[%clk 0:01:16]}  Rd7 {[%clk 0:00:15]} 44. Rxd7 {[%clk 0:01:14]}  Qxd7 {[%clk 0:00:16]} 45. Qc6 {[%clk 0:01:15]}  Qxc6 {[%clk 0:00:16]} 46. bxc6 {[%clk 0:01:16]}  Nd5 {[%clk 0:00:16]} 47. f3 {[%clk 0:01:12]}  Nc7 {[%clk 0:00:17]} 48. Kf2 {[%clk 0:01:11]}  Kg6 {[%clk 0:00:18]} 49. e4 {[%clk 0:01:11]}  Kf6 {[%clk 0:00:19]} 50. Ke3 {[%clk 0:01:10]}  Ke7 {[%clk 0:00:19]} 51. e5 {[%clk 0:01:10]}  Nd5+ {[%clk 0:00:18]} 52. Kd2 {[%clk 0:01:07]}  Kd8 {[%clk 0:00:18]} 53. Bb5 {[%clk 0:01:06]}  Kc7 {[%clk 0:00:16]} 54. Kd3 {[%clk 0:01:06]}  Ne7 {[%clk 0:00:14]} 55. Bc4 {[%clk 0:01:03]}  Nxc6 {[%clk 0:00:08]} 56. Bxe6 {[%clk 0:01:02]}  Ne7 {[%clk 0:00:08]} 57. d5 {[%clk 0:00:58]}  Kd8 {[%clk 0:00:08]} 58. d6 {[%clk 0:00:56]}  Nc6 {[%clk 0:00:08]} 59. f4 {[%clk 0:00:56]}  g6 {[%clk 0:00:09]} 60. Bf7 {[%clk 0:00:55]}  g5 {[%clk 0:00:09]} 61. Bg6 {[%clk 0:00:54]}  gxf4 {[%clk 0:00:10]} 62. gxf4 {[%clk 0:00:55]}  b5 {[%clk 0:00:09]} 63. Bxf5 {[%clk 0:00:55]}  h5 {[%clk 0:00:10]} 64. h4 {[%clk 0:00:54]}  b4 {[%clk 0:00:10]} 65. Be4 {[%clk 0:00:54]}  Na5 {[%clk 0:00:09]} 66. e6 {[%clk 0:00:52]}  b3 {[%clk 0:00:09]} 67. e7+ {[%clk 0:00:52]}  Kd7 {[%clk 0:00:09]} 68. Bf5+ {[%clk 0:00:52]}  Ke8 {[%clk 0:00:09]} 69. Bg6+ {[%clk 0:00:52]}  Kd7 {[%clk 0:00:08]} 70. e8=Q+ {[%clk 0:00:53]}  Kxd6 {[%clk 0:00:09]} 71. Qd8+ {[%clk 0:00:52]}  Kc5 {[%clk 0:00:10]} 72. Qxa5+ {[%clk 0:00:51]}  Kc6 {[%clk 0:00:10]} 73. Qc3+ {[%clk 0:00:51]}  Kb7 {[%clk 0:00:11]} 74. Qxb3+ {[%clk 0:00:51]}  Ka7 {[%clk 0:00:12]} 75. f5 {[%clk 0:00:51]}  Ka6 {[%clk 0:00:12]} 76. f6 {[%clk 0:00:52]}  Ka7 {[%clk 0:00:13]} 77. f7 {[%clk 0:00:52]}  Ka6 {[%clk 0:00:14]} 78. f8=Q {[%clk 0:00:53]}  Ka5 {[%clk 0:00:15]} 79. Qfa3# {[%clk 0:00:52]} 1-0


[Site "https://www.chess.com"]

[Event "Titled Tuesday Blitz May 24 Early 2022"]
[White "Riehle, Marco"]
[Black "Barp, Alberto"]
[WhiteFideId "12904392"]
[BlackFideId "872555"]
[WhiteElo "2462"]
[BlackElo "2229"]
[Result "0-1"]
[Round "09"]
[TimeControl "180+1"]
[Date "2022.05.24"]
[WhiteClock "0:00:58"]
[BlackClock "0:00:15"]

1. e4 {[%clk 0:03:00]}  c5 {[%clk 0:02:47]} 2. a3 {[%clk 0:03:00]}  e6 {[%clk 0:02:41]} 3. b4 {[%clk 0:02:58]}  b6 {[%clk 0:02:40]} 4. Bb2 {[%clk 0:02:55]}  Nf6 {[%clk 0:02:40]} 5. e5 {[%clk 0:02:55]}  Nd5 {[%clk 0:02:39]} 6. c4 {[%clk 0:02:54]}  Nc7 {[%clk 0:02:39]} 7. Nf3 {[%clk 0:02:48]}  cxb4 {[%clk 0:02:32]} 8. Bd3 {[%clk 0:02:48]}  Nc6 {[%clk 0:02:29]} 9. O-O {[%clk 0:02:46]}  Be7 {[%clk 0:02:25]} 10. Be4 {[%clk 0:02:45]}  O-O {[%clk 0:02:09]} 11. d4 {[%clk 0:02:44]}  bxa3 {[%clk 0:02:03]} 12. Nxa3 {[%clk 0:02:41]}  f5 {[%clk 0:02:03]} 13. Bb1 {[%clk 0:02:34]}  Na5 {[%clk 0:01:56]} 14. d5 {[%clk 0:02:32]}  Bc5 {[%clk 0:01:55]} 15. Nb5 {[%clk 0:02:24]}  Nxc4 {[%clk 0:01:48]} 16. Nxc7 {[%clk 0:02:19]}  Nxb2 {[%clk 0:01:47]} 17. Qb3 {[%clk 0:02:17]}  Qxc7 {[%clk 0:01:45]} 18. d6 {[%clk 0:02:15]}  Qd8 {[%clk 0:01:38]} 19. Qxb2 {[%clk 0:02:12]}  Bb7 {[%clk 0:01:39]} 20. Qb3 {[%clk 0:02:05]}  Bd5 {[%clk 0:01:38]} 21. Qd3 {[%clk 0:02:02]}  a5 {[%clk 0:01:21]} 22. Ba2 {[%clk 0:02:00]}  Be4 {[%clk 0:01:19]} 23. Qe2 {[%clk 0:01:56]}  a4 {[%clk 0:01:17]} 24. Bc4 {[%clk 0:01:53]}  a3 {[%clk 0:01:16]} 25. Nd2 {[%clk 0:01:49]}  Bb7 {[%clk 0:01:12]} 26. Nb3 {[%clk 0:01:46]}  Qg5 {[%clk 0:01:08]} 27. g3 {[%clk 0:01:46]}  f4 {[%clk 0:00:59]} 28. Nxc5 {[%clk 0:01:46]}  bxc5 {[%clk 0:00:51]} 29. Rfb1 {[%clk 0:01:42]}  Bc6 {[%clk 0:00:48]} 30. Rb6 {[%clk 0:01:42]}  f3 {[%clk 0:00:48]} 31. Qe1 {[%clk 0:01:35]}  Kh8 {[%clk 0:00:43]} 32. Bxe6 {[%clk 0:01:31]}  Rfe8 {[%clk 0:00:43]} 33. Bh3 {[%clk 0:01:16]}  Qxe5 {[%clk 0:00:39]} 34. Qxe5 {[%clk 0:01:12]}  Rxe5 {[%clk 0:00:39]} 35. Rxa3 {[%clk 0:01:12]}  Re1+ {[%clk 0:00:36]} 36. Bf1 {[%clk 0:01:12]}  Rae8 {[%clk 0:00:31]} 37. Re3 {[%clk 0:01:12]}  g6 {[%clk 0:00:22]} 38. h4 {[%clk 0:00:55]}  c4 {[%clk 0:00:19]} 39. Rxc6 {[%clk 0:00:54]}  dxc6 {[%clk 0:00:17]} 40. d7 {[%clk 0:00:55]}  R1xe3 {[%clk 0:00:16]} 41. fxe3 {[%clk 0:00:54]}  Rd8 {[%clk 0:00:16]} 42. Bxc4 {[%clk 0:00:55]}  Rxd7 {[%clk 0:00:17]} 43. Kf2 {[%clk 0:00:56]}  Kg7 {[%clk 0:00:15]} 44. Kxf3 {[%clk 0:00:56]}  Kf6 {[%clk 0:00:16]} 45. g4 {[%clk 0:00:56]}  Ke5 {[%clk 0:00:16]} 46. g5 {[%clk 0:00:56]}  c5 {[%clk 0:00:15]} 47. Ke2 {[%clk 0:00:55]}  Kf5 {[%clk 0:00:15]} 48. Kf3 {[%clk 0:00:55]}  Re7 {[%clk 0:00:15]} 49. e4+ {[%clk 0:00:55]}  Ke5 {[%clk 0:00:15]} 50. Ke3 {[%clk 0:00:55]}  Ra7 {[%clk 0:00:15]} 51. Bd5 {[%clk 0:00:55]}  Ra3+ {[%clk 0:00:15]} 52. Kf2 {[%clk 0:00:55]}  Rh3 {[%clk 0:00:15]} 53. Kg2 {[%clk 0:00:55]}  Rxh4 {[%clk 0:00:15]} 54. Kg3 {[%clk 0:00:56]}  Rh5 {[%clk 0:00:15]} 55. Kg4 {[%clk 0:00:57]}  Kd4 {[%clk 0:00:14]} 56. Bf7 {[%clk 0:00:55]}  Rh1 {[%clk 0:00:13]} 57. e5 {[%clk 0:00:56]}  Kxe5 {[%clk 0:00:13]} 58. Bg8 {[%clk 0:00:56]}  Kd4 {[%clk 0:00:13]} 59. Kf4 {[%clk 0:00:57]}  c4 {[%clk 0:00:13]} 60. Kg3 {[%clk 0:00:58]}  c3 {[%clk 0:00:14]} 61. Kg2 {[%clk 0:00:58]}  Rh5 {[%clk 0:00:14]} 62. Bb3 {[%clk 0:00:58]}  Rxg5+ {[%clk 0:00:15]} 63. Kf3 {[%clk 0:00:58]}  Rb5 {[%clk 0:00:15]} 0-1


[Site "https://www.chess.com"]

[Event "Titled Tuesday Blitz May 24 Early 2022"]
[White "Rodchenkov, Sergey D."]
[Black "Gronnestad, Anita"]
[WhiteFideId "4168712"]
[BlackFideId "1502972"]
[WhiteElo "2306"]
[BlackElo "1933"]
[Result "1-0"]
[Round "09"]
[TimeControl "180+1"]
[Date "2022.05.25"]
[WhiteClock "0:00:19"]
[BlackClock "0:00:01"]

1. e4 {[%clk 0:02:49]}  c5 {[%clk 0:02:59]} 2. Nf3 {[%clk 0:02:49]}  g6 {[%clk 0:02:58]} 3. d4 {[%clk 0:02:50]}  cxd4 {[%clk 0:02:59]} 4. Nxd4 {[%clk 0:02:49]}  Nc6 {[%clk 0:02:59]} 5. c4 {[%clk 0:02:49]}  Nf6 {[%clk 0:02:58]} 6. Nc3 {[%clk 0:02:48]}  Nxd4 {[%clk 0:02:57]} 7. Qxd4 {[%clk 0:02:48]}  d6 {[%clk 0:02:57]} 8. Be2 {[%clk 0:02:44]}  Bg7 {[%clk 0:02:57]} 9. Be3 {[%clk 0:02:42]}  O-O {[%clk 0:02:56]} 10. Qd3 {[%clk 0:02:42]}  Nd7 {[%clk 0:02:56]} 11. O-O {[%clk 0:02:40]}  Nc5 {[%clk 0:02:55]} 12. Qc2 {[%clk 0:02:36]}  Be6 {[%clk 0:02:53]} 13. Rad1 {[%clk 0:02:31]}  Rc8 {[%clk 0:02:47]} 14. b3 {[%clk 0:02:24]}  a6 {[%clk 0:02:43]} 15. Nd5 {[%clk 0:02:19]}  Bxd5 {[%clk 0:02:33]} 16. Rxd5 {[%clk 0:02:14]}  Qc7 {[%clk 0:02:30]} 17. f4 {[%clk 0:02:09]}  Rfd8 {[%clk 0:02:17]} 18. f5 {[%clk 0:02:05]}  e6 {[%clk 0:02:06]} 19. Rdd1 {[%clk 0:01:52]}  d5 {[%clk 0:01:51]} 20. fxg6 {[%clk 0:01:34]}  hxg6 {[%clk 0:01:46]} 21. exd5 {[%clk 0:01:33]}  exd5 {[%clk 0:01:41]} 22. Rxd5 {[%clk 0:01:15]}  Ne6 {[%clk 0:01:28]} 23. Qe4 {[%clk 0:01:01]}  Re8 {[%clk 0:01:22]} 24. Qf3 {[%clk 0:00:55]}  Qe7 {[%clk 0:01:05]} 25. Bd3 {[%clk 0:00:50]}  Nc7 {[%clk 0:00:55]} 26. Bc5 {[%clk 0:00:44]}  Qe6 {[%clk 0:00:45]} 27. Rd6 {[%clk 0:00:42]}  Qe7 {[%clk 0:00:34]} 28. Kh1 {[%clk 0:00:38]}  Ne6 {[%clk 0:00:25]} 29. Ba3 {[%clk 0:00:37]}  Rc7 {[%clk 0:00:20]} 30. Qd5 {[%clk 0:00:31]}  Ng5 {[%clk 0:00:10]} 31. Rxg6 {[%clk 0:00:29]}  Qxa3 {[%clk 0:00:02]} 32. Qxg5 {[%clk 0:00:26]}  Qb2 {[%clk 0:00:01]} 33. Qh5 {[%clk 0:00:19]} 1-0


[Site "https://www.chess.com"]

[Event "Titled Tuesday Blitz May 24 Early 2022"]
[White "Rostovtsev, Dmitry"]
[Black "Pakleza, Zbigniew"]
[WhiteFideId "34278320"]
[BlackFideId "1119290"]
[WhiteElo "2274"]
[BlackElo "2467"]
[Result "1-0"]
[Round "09"]
[TimeControl "180+1"]
[Date "2022.05.24"]
[WhiteClock "0:00:08"]
[BlackClock "0:00:14"]

1. c4 {[%clk 0:03:00]}  c6 {[%clk 0:02:58]} 2. d4 {[%clk 0:02:54]}  d5 {[%clk 0:02:58]} 3. Nf3 {[%clk 0:02:52]}  Nf6 {[%clk 0:02:58]} 4. e3 {[%clk 0:02:51]}  Bf5 {[%clk 0:02:58]} 5. Nc3 {[%clk 0:02:49]}  e6 {[%clk 0:02:58]} 6. Nh4 {[%clk 0:02:48]}  Be4 {[%clk 0:02:59]} 7. f3 {[%clk 0:02:44]}  Bg6 {[%clk 0:02:59]} 8. g3 {[%clk 0:02:43]}  Nbd7 {[%clk 0:02:57]} 9. Bg2 {[%clk 0:02:43]}  Bh5 {[%clk 0:02:53]} 10. Bf1 {[%clk 0:02:31]}  Bd6 {[%clk 0:02:47]} 11. c5 {[%clk 0:02:29]}  Bc7 {[%clk 0:02:47]} 12. Be2 {[%clk 0:02:22]}  O-O {[%clk 0:02:44]} 13. f4 {[%clk 0:02:21]}  Bxe2 {[%clk 0:02:42]} 14. Qxe2 {[%clk 0:02:21]}  b6 {[%clk 0:02:42]} 15. b4 {[%clk 0:01:31]}  a5 {[%clk 0:02:29]} 16. b5 {[%clk 0:01:31]}  bxc5 {[%clk 0:02:25]} 17. bxc6 {[%clk 0:01:29]}  cxd4 {[%clk 0:02:17]} 18. Nb5 {[%clk 0:01:14]}  Nb8 {[%clk 0:02:02]} 19. Ba3 {[%clk 0:01:05]}  Re8 {[%clk 0:01:59]} 20. exd4 {[%clk 0:01:00]}  Ra6 {[%clk 0:01:29]} 21. O-O {[%clk 0:01:00]}  Rxc6 {[%clk 0:01:23]} 22. Rac1 {[%clk 0:00:59]}  Bb6 {[%clk 0:01:20]} 23. Nf3 {[%clk 0:00:54]}  Ne4 {[%clk 0:01:11]} 24. Ne5 {[%clk 0:00:42]}  Rxc1 {[%clk 0:01:09]} 25. Rxc1 {[%clk 0:00:43]}  f6 {[%clk 0:01:09]} 26. Nd3 {[%clk 0:00:41]}  Qd7 {[%clk 0:00:56]} 27. Nc5 {[%clk 0:00:40]}  Bxc5 {[%clk 0:00:56]} 28. Bxc5 {[%clk 0:00:38]}  Nc6 {[%clk 0:00:53]} 29. a4 {[%clk 0:00:38]}  Rc8 {[%clk 0:00:50]} 30. Qe1 {[%clk 0:00:35]}  h6 {[%clk 0:00:46]} 31. Kg2 {[%clk 0:00:34]}  e5 {[%clk 0:00:31]} 32. dxe5 {[%clk 0:00:28]}  fxe5 {[%clk 0:00:32]} 33. fxe5 {[%clk 0:00:25]}  Nxe5 {[%clk 0:00:33]} 34. Bd4 {[%clk 0:00:25]}  Nd3 {[%clk 0:00:24]} 35. Rxc8+ {[%clk 0:00:25]}  Qxc8 {[%clk 0:00:24]} 36. Qxa5 {[%clk 0:00:12]}  Qc2+ {[%clk 0:00:22]} 37. Kf3 {[%clk 0:00:13]}  Qd1+ {[%clk 0:00:16]} 38. Ke3 {[%clk 0:00:10]}  Ndf2 {[%clk 0:00:12]} 39. Qd8+ {[%clk 0:00:05]}  Kh7 {[%clk 0:00:13]} 40. Qe7 {[%clk 0:00:03]}  Qd2+ {[%clk 0:00:13]} 41. Kf3 {[%clk 0:00:03]}  Qg5 {[%clk 0:00:14]} 42. Qxg5 {[%clk 0:00:03]}  Nxg5+ {[%clk 0:00:10]} 43. Kxf2 {[%clk 0:00:03]}  Ne6 {[%clk 0:00:11]} 44. Kf3 {[%clk 0:00:04]}  g5 {[%clk 0:00:11]} 45. Ke3 {[%clk 0:00:05]}  Nd8 {[%clk 0:00:11]} 46. a5 {[%clk 0:00:05]}  Nc6 {[%clk 0:00:12]} 47. a6 {[%clk 0:00:06]}  Kg6 {[%clk 0:00:13]} 48. a7 {[%clk 0:00:06]}  Nxa7 {[%clk 0:00:13]} 49. Bxa7 {[%clk 0:00:07]}  Kf5 {[%clk 0:00:14]} 50. Kf3 {[%clk 0:00:07]}  Ke5 {[%clk 0:00:13]} 51. Bd4+ {[%clk 0:00:07]}  Kf5 {[%clk 0:00:14]} 52. g4+ {[%clk 0:00:07]}  Ke6 {[%clk 0:00:14]} 53. h3 {[%clk 0:00:08]} 1-0


[Site "https://www.chess.com"]

[Event "Titled Tuesday Blitz May 24 Early 2022"]
[White "Sarkar, Justin"]
[Black "Zorbos"]
[WhiteFideId "2010011"]
[WhiteElo "2020"]
[BlackElo "2464"]
[Result "0-1"]
[Round "09"]
[TimeControl "180+1"]
[Date "2022.05.25"]
[WhiteClock "0:00:01"]
[BlackClock "0:01:38"]

1. d4 {[%clk 0:02:52]}  Nf6 {[%clk 0:03:00]} 2. c4 {[%clk 0:02:51]}  e6 {[%clk 0:03:00]} 3. Nf3 {[%clk 0:02:47]}  c5 {[%clk 0:03:00]} 4. d5 {[%clk 0:02:46]}  d6 {[%clk 0:03:01]} 5. Nc3 {[%clk 0:02:43]}  exd5 {[%clk 0:03:01]} 6. cxd5 {[%clk 0:02:44]}  g6 {[%clk 0:03:02]} 7. e4 {[%clk 0:02:43]}  Bg7 {[%clk 0:03:02]} 8. Be2 {[%clk 0:02:43]}  O-O {[%clk 0:03:02]} 9. O-O {[%clk 0:02:42]}  Re8 {[%clk 0:03:03]} 10. Qc2 {[%clk 0:02:41]}  Na6 {[%clk 0:03:03]} 11. Nd2 {[%clk 0:02:30]}  Nc7 {[%clk 0:03:03]} 12. a4 {[%clk 0:02:11]}  Rb8 {[%clk 0:02:57]} 13. Nc4 {[%clk 0:02:06]}  b6 {[%clk 0:02:57]} 14. Bf4 {[%clk 0:02:00]}  Bf8 {[%clk 0:02:56]} 15. Rad1 {[%clk 0:01:53]}  Ba6 {[%clk 0:02:56]} 16. h3 {[%clk 0:01:22]}  Bxc4 {[%clk 0:02:56]} 17. Bxc4 {[%clk 0:01:22]}  Nd7 {[%clk 0:02:56]} 18. Rfe1 {[%clk 0:01:15]}  a6 {[%clk 0:02:46]} 19. Bf1 {[%clk 0:01:00]}  b5 {[%clk 0:02:45]} 20. axb5 {[%clk 0:00:49]}  Nxb5 {[%clk 0:02:46]} 21. Bxb5 {[%clk 0:00:27]}  axb5 {[%clk 0:02:46]} 22. Ra1 {[%clk 0:00:26]}  b4 {[%clk 0:02:44]} 23. Nb1 {[%clk 0:00:22]}  Qf6 {[%clk 0:02:31]} 24. Bg3 {[%clk 0:00:17]}  Bg7 {[%clk 0:02:30]} 25. Re2 {[%clk 0:00:08]}  Ra8 {[%clk 0:02:23]} 26. Rxa8 {[%clk 0:00:08]}  Rxa8 {[%clk 0:02:24]} 27. Nd2 {[%clk 0:00:07]}  Nb6 {[%clk 0:02:24]} 28. Nc4 {[%clk 0:00:05]}  Nxc4 {[%clk 0:02:23]} 29. Qxc4 {[%clk 0:00:05]}  Qe7 {[%clk 0:01:57]} 30. b3 {[%clk 0:00:05]}  h5 {[%clk 0:01:56]} 31. h4 {[%clk 0:00:05]}  Bf6 {[%clk 0:01:56]} 32. f3 {[%clk 0:00:04]}  Bxh4 {[%clk 0:01:55]} 33. Bxh4 {[%clk 0:00:04]}  Qxh4 {[%clk 0:01:56]} 34. Qc1 {[%clk 0:00:01]}  Qf6 {[%clk 0:01:53]} 35. e5 {[%clk 0:00:01]}  dxe5 {[%clk 0:01:52]} 36. Qe3 {[%clk 0:00:01]}  Ra1+ {[%clk 0:01:52]} 37. Re1 {[%clk 0:00:01]}  Qf4 {[%clk 0:01:38]} 0-1


[Site "https://www.chess.com"]